Cogmind - Beta 13 @@@ ROGUE MODE // 2024.07.24 @ 00:15:23 Player: APerTAS Result: Destroyed by D-53 Grenadier with Mini Grenade Launcher Performance ------------- Evolutions (0) 0 Regions Visited (2) 400 Robots Destroyed (16) 80 Value Destroyed (319) 319 Prototype IDs (2) 40 Alien Tech Used (0) 0 Bonus (0) 0 TOTAL SCORE: 839 Bonus ------- None Cogmind --------- Core Integrity 0/250 Matter 300/300 Energy 100/100 System Corruption 0% Temperature Cool (0) Movement Treading (160) Location -10/Mines Parts ------- > --- POWER (1) -------- (None) > --- PROPULSION (2) --- Light Treads > --- UTILITY (2) ------ Large Storage Unit Targeting Computer > --- WEAPON (2) ------- (None) > --- INVENTORY (15) --- Ion Engine Light Treads Compact Wheel Compact Wheel Heat Sink Large Storage Unit Sensor Array Signal Interpreter Targeting Computer ECM Suite Weapon Shielding EM Pulse Gun Particle Gun Beam Cannon Hammer Peak State ------------ > --- POWER ------------ Ion Engine > --- PROPULSION ------- Light Treads Light Treads > --- UTILITY ---------- Large Storage Unit Backup Plating I > --- WEAPON ----------- Assault Rifle Light Assault Rifle > --- INVENTORY -------- Ion Engine Compact Wheel Compact Wheel Heat Sink Large Storage Unit Sensor Array Weapon Shielding EM Pulse Gun Medium Laser Small Laser [Rating: 8] Favorites ----------- Power Ion Engine Engine Ion Engine Propulsion Light Treads Treads Light Treads Utility Large Storage Unit Storage Large Storage Unit Processor Targeting Computer Protection Backup Plating I Weapon Light Assault Rifle Energy Gun EM Pulse Gun Ballistic Gun Light Assault Rifle Build | -11 -10 -10 ------- Run | Yrd Mat Min Slots Evolved . | . . . Power . | . . . Propulsion . | . . . Utility . | . . . Weapon . | . . . Parts Attached 13 | 8 5 . Power 2 | 2 . . Engine 2 | 2 . . Core . | . . . Reactor . | . . . Propulsion 2 | 2 . . Treads 2 | 2 . . Leg . | . . . Wheel . | . . . Hover . | . . . Flight . | . . . Utility 4 | 1 3 . Device . | . . . Storage 3 | 1 2 . Processor 1 | . 1 . Hackware . | . . . Protection . | . . . Artifact . | . . . Weapon 5 | 3 2 . Energy Gun 2 | 2 . . Energy Cannon . | . . . Ballistic Gun 3 | 1 2 . Ballistic Cannon . | . . . Launcher . | . . . Special Weapon . | . . . Impact Weapon . | . . . Slashing Weapon . | . . . Piercing Weapon . | . . . Special Melee Weapon . | . . . Unidentified Prototypes . | . . . Parts Lost 4 | . . 4 Power 1 | . . 1 Propulsion 1 | . . 1 Utility . | . . . Weapon 2 | . . 2 Highest Loss Streak 4 | . . 4 To Critical Strikes . | . . . Average Slot Usage (%) 99 | . 99 97 Engine 13 | . 14 13 Treads 28 | . 28 28 Storage 14 | . 14 14 Processor 3 | . 2 14 Protection 9 | . 11 . Energy Gun 1 | . 1 . Ballistic Gun 26 | . 26 26 Naked Turns . | . . . Heaviest Build 29 | 13 29 28 Greatest Support 40 | 40 40 40 Greatest Overweight (x) 1 | 1 . . Average Overweight (x) . | . . . Largest Inventory Capacity 15 | 8 15 15 Average Capacity 13 | 7 13 15 Most Carried 15 | 4 15 15 Average Carried 11 | 2 11 15 Final Capacity 15 | 8 15 15 Final Carried 15 | 4 15 15 Class Distribution -------------------- 100% | Mutant Dominant Class ---------------- Mutant | -10/Materials Mutant | -10/Mines Resources | -11 -10 -10 ----------- Run | Yrd Mat Min Matter Collected 503 | 244 207 52 Remotely . | . . . Salvage Created 435 | . 383 52 Parts 36 | . 29 7 Haulers Intercepted . | . . . Recyclers Shooed . | . . . Parts Field Recycled . | . . . Retrieved Matter . | . . . Parts Self-Destructed . | . . . Prevented . | . . . Kills | -11 -10 -10 ------- Run | Yrd Mat Min Combat Hostiles Destroyed 12 | . 9 3 Guns 12 | . 9 3 Classes Destroyed 6 | . 6 . Worker 1 | . 1 . Builder 1 | . 1 . Tunneler 1 | . 1 . Watcher 1 | . 1 . Swarmer 6 | . 3 3 Grunt 6 | . 6 . Best Kill Streak 7 | . 7 3 Combat Bots Only 7 | . 7 3 Max Kills in Single Turn 2 | . 1 2 Gunslinging . | . . . Exploded . | . . . Melee . | . . . Uniques/NPCs Destroyed . | . . . Combat | -11 -10 -10 -------- Run | Yrd Mat Min Hostile Shots Fired 83 | . 40 43 Missed 27 | . 13 14 Damage Taken 921 | . 305 616 Core 252 | . 40 212 Absorbed by Shields . | . . . Core Remaining (%) 100 | 100 . . Volleys Fired 47 | . 37 10 Largest 2 | . 2 2 Hottest 40 | . 40 40 Shots Fired 94 | . 74 20 Gun 94 | . 74 20 Cannon . | . . . Launcher . | . . . Special . | . . . Kinetic 94 | . 74 20 Thermal . | . . . Explosive . | . . . Electromagnetic . | . . . Robot Hit Streak 5 | . 5 2 Robot Miss Streak 3 | . 3 3 Penetration Max . | . . . Secondary Targets . | . . . Shots Hit Robots 51 | . 44 7 Core Hits 28 | . 24 4 Critical Kills . | . . . Critical Parts Destroyed 1 | . 1 . Critical Strikes 1 | . 1 . Destroy 1 | . 1 . Melee Attacks . | . . . Impact . | . . . Slashing . | . . . Piercing . | . . . Sneak Attacks . | . . . Combat Hostiles . | . . . Follow-up Attacks . | . . . Damage Inflicted 571 | . 479 92 Guns 571 | . 479 92 Cannons . | . . . Explosions . | . . . Melee . | . . . Ramming . | . . . Kinetic 571 | . 479 92 Thermal . | . . . Explosive . | . . . Electromagnetic . | . . . Impact . | . . . Slashing . | . . . Piercing . | . . . Highest Corruption . | . . . Average Corruption . | . . . Corruption Purged . | . . . Corruption Blocked . | . . . Overload Shots . | . . . Overflow Damage . | . . . Projectiles . | . . . Explosions . | . . . Melee . | . . . Knockbacks . | . . . Impact . | . . . Kinetic . | . . . Secondary . | . . . Self-Inflicted Damage . | . . . Shots . | . . . Rammed . | . . . Targets Rammed . | . . . Kicked . | . . . Crushed . | . . . Highest Temperature 32 | . 32 20 Average Temperature 6 | . 6 11 Received Heat Transfer 218 | . 138 80 Siege Activations . | . . . Robots Corrupted . | . . . Combat Hostiles . | . . . Parts Fried . | . . . Impact Corruptions . | . . . Robots Melted . | . . . Combat Hostiles . | . . . Parts Melted . | . . . Heat Transferred . | . . . Parts Sabotaged . | . . . Parts Stolen . | . . . Parts Stripped . | . . . Power Chain Reactions . | . . . Alert | -11 -10 -10 ------- Run | Yrd Mat Min Peak Influence 225 | . 225 132 Initial 47 | . . 47 Average 86 | . 86 123 Maximum Alert Level 1 | . 1 . Low Security (%) 81 | 100 77 100 Level 1 18 | . 22 . Level 2 . | . . . Level 3 . | . . . Level 4 . | . . . Level 5 . | . . . High Security . | . . . Max Security . | . . . Squads Dispatched 1 | . 1 . Investigation 1 | . 1 . Extermination . | . . . Reinforcement . | . . . Assault . | . . . Garrison . | . . . Intercept . | . . . Searches Triggered . | . . . Construction Impeded . | . . . Haulers Reinforced . | . . . Active Scanning Responses . | . . . Cargo Convoy Interrupts . | . . . Stealth | -11 -10 -10 --------- Run | Yrd Mat Min Distress Signals 1 | . 1 . Communications Jammed . | . . . Distress Signals . | . . . Times Spotted 36 | . 17 19 Peak Tracking Total 16 | . 4 16 Tactical Retreats 1 | . 1 . Traps | -11 -10 -10 ------- Run | Yrd Mat Min Traps Triggered . | . . . Indirectly . | . . . Trap Hack Attempts . | . . . Triggered . | . . . Disarmed . | . . . Reprogrammed . | . . . Reused . | . . . Traps Extracted . | . . . Installed . | . . . Triggered . | . . . Objects Rigged 2 | . 2 . Machines | -11 -10 -10 ---------- Run | Yrd Mat Min Machines Disabled . | . . . Max in Single Turn . | . . . Machines Repaired . | . . . Machines Dismantled . | . . . Machines Sabotaged . | . . . Overloaded Fab Kills . | . . . Hacking | -11 -10 -10 --------- Run | Yrd Mat Min Machines Accessed 11 | . 11 . Terminals 8 | . 8 . Fabricators . | . . . Repair Stations 1 | . 1 . Recycling Units 2 | . 2 . Scanalyzers . | . . . Garrison Access . | . . . Total Hacks 33 | . 33 . Successful 21 | . 21 . Failed 12 | . 12 . Catastrophic 5 | . 5 . Database Lockouts . | . . . Manual 21 | . 21 . Terminals 24 | . 24 . Fabricators . | . . . Repair Stations 1 | . 1 . Recycling Units 8 | . 8 . Scanalyzers . | . . . Garrison Access . | . . . Terminal Hacks 9 | . 9 . Robot Analysis 4 | . 4 . Prototype ID Bank 1 | . 1 . Emergency Access Points 1 | . 1 . Alert Level 1 | . 1 . Zone Layout 2 | . 2 . Fabricator Hacks . | . . . Repair Station Hacks 1 | . 1 . Refit 1 | . 1 . Recycling Unit Hacks 3 | . 3 . Report Inventory 1 | . 1 . Retrieve Matter 1 | . 1 . Retrieve Components 1 | . 1 . Scanalyzer . | . . . Garrison Access Hacks . | . . . Unauthorized Hacks 8 | . 8 . Terminals 4 | . 4 . Botnet 3 | . 3 . Detonate 1 | . 1 . Fabricators . | . . . Repair Stations . | . . . Recycling Units 4 | . 4 . Reject 2 | . 2 . Mask 2 | . 2 . Scanalyzers . | . . . Garrison Access . | . . . Data Cores Recovered . | . . . Used . | . . . Hacking Detections 8 | . 8 . Full Trace Events 2 | . 2 . Feedback Events . | . . . Feedback Blocked . | . . . Robot Schematics Acquired . | . . . Robots Built . | . . . Authchips . | . . . Time . | . . . Total Robot Build Rating . | . . . Part Schematics Acquired . | . . . Parts Built . | . . . Authchips . | . . . Time . | . . . Total Part Build Rating . | . . . Parts Repaired . | . . . Time . | . . . Parts Recycled . | . . . Recycled Matter . | . . . Retrieved Matter . | . . . Retrieved Components . | . . . Parts Scanalyzed . | . . . Part Schematics Acquired . | . . . Parts Damaged . | . . . Bothacking | -11 -10 -10 ------------ Run | Yrd Mat Min Used RIF Installer . | . . . Robots Hacked . | . . . Non-combat . | . . . Combat . | . . . Robot Hacks Applied . | . . . Relay Couplers Released . | . . . Fabnet Peak Effective % . | . . . Robots Rewired . | . . . Allies Hacked . | . . . Hacks Repelled . | . . . Allies | -11 -10 -10 -------- Run | Yrd Mat Min Total Allies . | . . . Largest Group . | . . . Highest-Rated Group . | . . . Highest-Rated Ally . | . . . Total Orders . | . . . Ally Attacks . | . . . Total Damage . | . . . Kills . | . . . Allies Corrupted . | . . . Allies Melted . | . . . Intel | -11 -10 -10 ------- Run | Yrd Mat Min Robot Analysis Total 4 | . 4 . Derelict Logs Recovered . | . . . Drone Launches . | . . . Drone Recoveries . | . . . Exploration | -11 -10 -10 ------------- Run | Yrd Mat Min Turns Passed 1582 | 89 1311 182 Spaces Moved 875 | 52 729 94 Core 13 | 13 . . Treads 862 | 39 729 94 Legs . | . . . Wheels . | . . . Hover . | . . . Flight . | . . . Fastest Speed 50 | 50 160 160 Average Speed 158 | 143 160 160 Slowest Speed 160 | 160 160 160 Overloaded Moves . | . . . Propulsion Burnouts . | . . . Robots Hopped . | . . . Cave-ins Triggered . | . . . Exploration Rate (%) 44 | 6 95 31 Regions Visited 2 Branch Regions 1 Pre-discovered Areas . | . . . Known Exits Taken . | . . . Unknown Exits Taken 2 | 1 1 . Scrap Searched . | . . . Spaces Dug . | . . . Terrain Destroyed . | . . . Melee . | . . . Projectile . | . . . AOE . | . . . Terrain Rammed . | . . . Walls Destroyed . | . . . Machines Disabled . | . . . Actions | -11 -10 -10 --------- Run | Yrd Mat Min Total 979 | 63 809 107 Wait 22 | . 19 3 Move 873 | 51 728 94 Hop . | . . . Pick Up 17 | 4 13 . Fast Attach 8 | 6 2 . Attach . | . . . Detach 1 | . 1 . Swap 5 | 2 3 . Drop 6 | . 6 . Fire 47 | . 37 10 Melee . | . . . Ram . | . . . Kick . | . . . Crush . | . . . Escape Stasis . | . . . Rewire . | . . . Trap . | . . . Miscellaneous . | . . . Route ------- -11/Scrapyard -10/Materials (discovered 5 exits: [*Mat x3] / [*Min x2]) -10/Mines History --------- Turn | Location | Event 22 | -11/Scrapyard | Discovered new exit (range 14) 90 | -11/Scrapyard | Entered Materials 154 | -10/Materials | Discovered new exit (range 11) 313 | -10/Materials | Build established: Mutant 343 | -10/Materials | Discovered new exit (range 13) 588 | -10/Materials | Discovered new exit (range 16) 999 | -10/Materials | Destroyed 7 combat bots 1189 | -10/Materials | Discovered new exit (range 7) 1340 | -10/Materials | Discovered new exit (range 6) 1401 | -10/Materials | Entered Mines 1553 | -10/Mines | Assembled infested the area 1574 | -10/Mines | Core integrity fell below 50% 1580 | -10/Mines | Core integrity fell below 20% 1583 | -10/Mines | Destroyed by D-53 Grenadier with Mini Grenade Launcher Last Messages --------------- 01574_ as-52446 destroyed. 01574_ as-43523 destroyed. 01576_ as-37003 destroyed. 01576_ Matter Pump disabled. 01576_ as-18124 destroyed. 01576_ as-23422 destroyed. 01576_ as-81474 destroyed. 01576_ as-03512 destroyed. 01576_ as-06794 destroyed. 01576_ as-00090 suffers critical hit (Destroy). 01578_ as-73524 destroyed. 01578_ as-15971 destroyed. 01579_ as-68865 destroyed. 01579_ Ion Engine destroyed. 01580_ as-67952 destroyed. 01580_ as-40361 destroyed. 01581_ T-07 Excavator destroyed. 01582_ The unstable cave ceiling collapses. 01583_ Lgt. Treads destroyed. [Achievement: Achiever] Map ----- +----------------------------------------------------+ | ???????????####??## ########### #???? | | ??????????## ##??#### * [* #????? | | ??????????# #####?## ==* = ##?????? | | ??????????# ##?## ##### ##### ##??????? | | ???????????# ##?####???# #???? #???????? | | ????????????# ########## #????? #???????? | | ??????????### #????? #???????? | | ?????????## ###########?????? #???????? | | ???????### ##???????????????? #???????? | | ??????## ## ##????????????????? #???????? | | ??????# #### #????????????????? #???????? | | ?????## #??## #?????????????????? ???????? | | ??#### #???# #?????????????????? ???????? | | ?## #???## ##???????????????????$??????? | | ?# #????####???????????????????? ??????? | | ## #?????????????????????????????#?????? | | ## ##????????????????????? ?????????????? | | ########????????????????????? ??????????????? | | ### #?????????????????????????? ???????????????? | | ??# ###????????????????####### ?????????????????? | | ??# #????????????##### ??????????????????? | | ??#### ############## %!????????????????????? | | ?????# ## #????????????????????? | | ?????########### ## #????????????????????? | | ??????????????## # ##???????????????????? | | ????????????# d@ ###?????????????????? | | ????????????# # % #?????????????????? | | ????????????# = d #????????????????? | | ????????????# % = k ?????????????? | | ???????????# " t##### #????????????? | | ????????? #???# ##????????????? | | ??????? #????# ##?????????????? | | ?????? ## # % ##?????####??????????????? | | ????? ???# ?# ##????????????????????????? | | ?????????#??? ###u#?????????????????????????? | | ?????????????## #?# #?????????????????????????? | | ??????????????# ##?# #?????????????????????????? | | ??????????????# ##??# #?????????????????????????? | | ??????????????# #???# #?????????????????????????? | | ??????????????# #???? ??????????????????????????? | | ??????????????# ???? ??????????????????????????? | | ??????????????? ????? ??????????????????????????? | | ????????????????#????????????????????????????????? | | ?????????????????????????????????????????????????? | | ?????????????????????????????????????????????????? | | ?????????????????????????????????????????????????? | | ?????????????????????????????????????????????????? | | ?????????????????????????????????????????????????? | | ?????????????????????????????????????????????????? | | ?????????????????????????????????????????????????? | +----------------------------------------------------+ Best States ------------- Heat Dissipation 25 Energy Generation 10 Energy Capacity 250 Matter Stores 300 Matter Capacity 300 Sight Range 16 Terrain Scan Density 10 Armor Coverage 80 Evasion (%) 40 Targeting Accuracy 5 Recoil Reduction 2 Item Schematics ----------------- None Robot Schematics ------------------ None Fabricated ------------ Nothing Alien Tech Used ----------------- None Achievements -------------- Achiever Armchair Analyst Quantum Hacking Challenges ------------ None Game ------ Seed TargetSeismicMultitool Manual? 0 Play Time 00:14:08 Cumulative 20.5 hours Start 2024.07.24 @ 00:01:50 End 2024.07.24 @ 00:15:23 Sessions 1 Manual Loads 0 Difficulty Rogue Special Mode None Game No. 67 Rogue 67 Adventurer 0 Explorer 0 Win Type - Total 0 Types 0/0/0/0/0/0/0/0/0 Lore% 27 Gallery% 25 Achievement% 25 Wizard Run 0 Options --------- Layout 1 ASCII 0 Keyboard 0 Movement Arrows Keybinds 0 Fullscreen 1 Font 28/Dina Map View 50x43 Zoom Use 0% Tactical HUD 1 Map Filters NONE Filters NONE Steam X RUN: 6bbef1b1-ab5c-44c5-913f-536affd484c4